fUSD/lending_fUSD_20260529
["ID","MTS","AMOUNT","RATE_DAILY","PERIOD"]
[423314048,1780052913000,-27.79512155,0.00011832,2]
[423314046,1780052913000,-392.09004338,0.00011832,2]
[423314042,1780052913000,-500.0,0.00011832,2]
[423314045,1780052913000,-500.0,0.00011832,2]
[423314044,1780052913000,-500.0,0.00011832,2]
[423314052,1780052914000,-718.68372899,0.00011832,2]
[423314053,1780052914000,-907.37139256,0.00011904,2]
[423314051,1780052914000,-686.20487845,0.00011832,2]
[423314049,1780052914000,-1343.87,0.00011337,2]
[423314050,1780052914000,-1343.87,0.0001162,2]
[423314055,1780052915000,-4563.50139256,0.00011964,2]
[423314054,1780052915000,-436.49860744,0.00011904,2]
[423314056,1780052916000,-5000.0,0.00011964,2]
[423314057,1780052917000,-5000.0,0.00011964,2]
[423314061,1780052940000,-5000.0,0.00011964,2]
[423314064,1780052941000,-5000.0,0.00011964,2]
[423314063,1780052941000,-5000.0,0.00011964,2]
[423314065,1780052942000,1000.0,0.00028081,120]
[423314067,1780052955000,-261.57,0.00011337,2]
[423314068,1780052955000,-4738.43,0.00011964,2]
[423314069,1780052957000,-5000.0,0.00011964,2]
[423314073,1780052985000,-5000.0,0.00011964,2]
[423314074,1780052987000,-5000.0,0.00011964,2]
[423314076,1780052989000,-5000.0,0.00011964,2]
[423314077,1780052990000,-5000.0,0.00011964,2]
[423314078,1780052992000,-5000.0,0.00011964,2]
[423314079,1780052993000,-5000.0,0.00011964,2]
[423314080,1780052994000,-5000.0,0.00011964,2]
[423314081,1780052995000,-5000.0,0.00011964,2]
[423314082,1780053004000,-5000.0,0.00011964,2]
[423314083,1780053005000,-5000.0,0.00011964,2]
[423314086,1780053006000,-5000.0,0.00011964,2]
[423314084,1780053006000,-5000.0,0.00011964,2]
[423314088,1780053007000,-279.88406166,0.00012006,2]
[423314087,1780053007000,-4720.11593834,0.00011964,2]
[423314090,1780053008000,-220.11593834,0.00012006,2]
[423314091,1780053008000,-500.0,0.00012006,2]
[423314093,1780053008000,-500.0,0.00012006,2]
[423314092,1780053008000,-514.37053734,0.00012006,2]
[423314098,1780053008000,-500.0,0.00012006,2]
[423314095,1780053008000,-500.0,0.00012006,2]
[423314096,1780053008000,-500.0,0.00012006,2]
[423314097,1780053008000,-500.0,0.00012006,2]
[423314094,1780053008000,-500.0,0.00012006,2]
[423314099,1780053008000,-560.30797611,0.00012006,2]
[423314104,1780053009000,-500.0,0.00012006,2]
[423314100,1780053009000,-205.20554821,0.00012006,2]
[423314101,1780053009000,-294.79445179,0.00012006,2]
[423314103,1780053009000,-500.0,0.00012006,2]
[423314102,1780053009000,-500.0,0.00012006,2]
[423314106,1780053009000,-500.0,0.00012006,2]
[423314107,1780053009000,-500.0,0.00012006,2]
[423314108,1780053009000,-500.0,0.00012006,2]
[423314111,1780053009000,-205.20554821,0.00012006,2]
[423314110,1780053009000,-500.0,0.00012006,2]
[423314109,1780053009000,-500.0,0.00012006,2]
[423314105,1780053009000,-500.0,0.00012006,2]
[423314113,1780053010000,-294.79445179,0.00012006,2]
[423314114,1780053010000,-500.0,0.00012006,2]
[423314116,1780053010000,-253.64035925,0.00012006,2]
[423314115,1780053010000,-500.0,0.00012006,2]
[423314118,1780053010000,-500.0,0.00012006,2]
[423314120,1780053010000,-500.0,0.00012006,2]
[423314119,1780053010000,-500.0,0.00012006,2]
[423314121,1780053010000,-500.0,0.00012006,2]
[423314117,1780053010000,-500.0,0.00012006,2]
[423314123,1780053011000,-451.56518896,0.00012006,2]
[423314122,1780053011000,-500.0,0.00012006,2]
[423314129,1780053018000,-250.0,0.00012006,2]
[423314124,1780053018000,-500.0,0.00011819,2]
[423314125,1780053018000,-48.43481104,0.00012006,2]
[423314126,1780053018000,-500.0,0.00012006,2]
[423314127,1780053018000,-500.0,0.00012006,2]
[423314132,1780053018000,-500.0,0.00012006,2]
[423314133,1780053018000,-1200.0,0.00012006,2]
[423314131,1780053018000,-500.0,0.00012006,2]
[423314130,1780053018000,-500.0,0.00012006,2]
[423314134,1780053018000,-1.56518896,0.00012006,2]
[423314128,1780053018000,-500.0,0.00012006,2]
[423314137,1780053019000,-250.0,0.00012007,2]
[423314138,1780053019000,-215.5484138,0.00012011,2]
[423314135,1780053019000,-298.43481104,0.00012006,2]
[423314136,1780053019000,-390.59465909,0.00012006,2]
[423314139,1780053029000,3845.42211607,0.00012055,2]
[423314142,1780053032000,-1575.73615394,0.00012055,2]
[423314143,1780053032000,-673.60592659,0.00012055,2]
[423314145,1780053032000,-29518.54542339,0.00012055,2]
[423314148,1780053032000,-9999.99,0.00012106,2]
[423314147,1780053032000,-24999.99,0.00012106,2]
[423314146,1780053032000,-150.99,0.00012106,2]
[423314144,1780053032000,-3296.18038001,0.00012055,2]
[423314162,1780053033000,-2713.9793,0.00012129,2]
[423314168,1780053033000,-160.39,0.00012229,2]
[423314170,1780053033000,-209.09056759,0.00012261,2]
[423314169,1780053033000,-2500.0,0.00012242,2]
[423314171,1780053033000,-160.0,0.00012272,2]
[423314176,1780053033000,-500.0,0.00012302,2]
[423314172,1780053033000,-1220.89365541,0.00012293,2]
[423314186,1780053033000,-3838.0,0.00012442,2]
[423314173,1780053033000,-2753.10634459,0.00012293,2]
[423314167,1780053033000,-349.6687,0.00012206,2]
[423314178,1780053033000,-500.0,0.00012302,2]
[423314179,1780053033000,-638.80349083,0.00012302,2]
[423314177,1780053033000,-500.0,0.00012302,2]
[423314180,1780053033000,-494.33,0.00012302,2]
[423314175,1780053033000,-500.0,0.00012302,2]
[423314174,1780053033000,-1699.78221285,0.00012293,2]
[423314164,1780053033000,-522.70812642,0.0001217,2]
[423314158,1780053033000,-299.99,0.00012107,2]
[423314149,1780053033000,-3013.84,0.00012106,2]
[423314151,1780053033000,-9617.82920074,0.00012106,2]
[423314150,1780053033000,-4999.99,0.00012106,2]
[423314157,1780053033000,-500.0,0.00012106,2]
[423314154,1780053033000,-238.33752828,0.00012106,2]
[423314152,1780053033000,-39716.93079926,0.00012106,2]
[423314166,1780053033000,-1343.87,0.00012187,2]
[423314156,1780053033000,-500.0,0.00012106,2]
[423314155,1780053033000,-608.86340137,0.00012106,2]
[423314160,1780053033000,-9999.99,0.00012107,2]
[423314159,1780053033000,-6155.12,0.00012107,2]
[423314163,1780053033000,-160.39,0.00012138,2]
[423314165,1780053033000,-166.66,0.00012174,2]
[423314161,1780053033000,-276.0,0.00012126,2]
[423314153,1780053033000,-9999.99,0.00012106,2]
[423314183,1780053033000,-1243.84,0.00012329,2]
[423314205,1780053033000,-2000.0,0.00013141,2]
[423314182,1780053033000,-160.39,0.0001232,2]
[423314199,1780053033000,-2000.0,0.00013141,2]
[423314211,1780053033000,-1680.0,0.00013207,2]
[423314203,1780053033000,-2000.0,0.00013141,2]
[423314215,1780053033000,-250.0,0.00013208,2]
[423314220,1780053033000,-1850.93,0.00013216,2]
[423314219,1780053033000,-2000.0,0.00013216,2]
[423314181,1780053033000,-666.7,0.00012302,2]
[423314223,1780053033000,-1278.3,0.00013297,2]
[423314227,1780053033000,-165852.80617224,0.00013324,2]
[423314232,1780053033000,-622.65661431,0.00013324,2]
[423314229,1780053033000,-431.72491626,0.00013324,2]
[423314236,1780053033000,-988.46017311,0.00013324,2]
[423314238,1780053033000,-751.90192561,0.00013324,2]
[423314237,1780053033000,-26361.51110804,0.00013324,2]
[423314224,1780053033000,-107795.50868029,0.00013324,2]
[423314209,1780053033000,-420.0,0.0001318,2]
[423314207,1780053033000,-1242.24,0.00013141,2]
[423314198,1780053033000,-270.67,0.00013019,2]
[423314184,1780053033000,-160.39,0.00012411,2]
[423314185,1780053033000,-1340.0,0.00012442,2]
[423314187,1780053033000,-1683.0,0.00012467,2]
[423314188,1780053033000,-1979.0,0.00012467,2]
[423314189,1780053033000,-15158.0,0.00012467,2]
[423314217,1780053033000,-500.0,0.00013208,2]
[423314191,1780053033000,-697.0,0.00012492,2]
[423314190,1780053033000,-1343.87,0.0001247,2]
[423314195,1780053033000,-7390.55,0.00012757,2]
[423314194,1780053033000,-166.66,0.00012576,2]
[423314196,1780053033000,-649.6,0.00012958,2]
[423314192,1780053033000,-1211.0,0.00012516,2]
[423314197,1780053033000,-166.66,0.00012978,2]
[423314201,1780053033000,-2000.0,0.00013141,2]
[423314213,1780053033000,-250.0,0.00013208,2]
[423314193,1780053033000,-572.0,0.00012541,2]
[423314249,1780053038000,-446.26987052,0.00013324,2]
[423314248,1780053038000,-29045.88646905,0.00013324,2]
[423314250,1780053038000,-2762.94568636,0.00013324,2]
[423314252,1780053038000,-3061.17696543,0.00013324,2]
[423314251,1780053038000,-503.47737862,0.00013324,2]
[423314254,1780053038000,-2621.19849465,0.00013324,2]
[423314257,1780053038000,-552.93113016,0.00013324,2]
[423314253,1780053038000,-3088.17405779,0.00013324,2]
[423314255,1780053038000,-571.18927001,0.00013324,2]
[423314256,1780053038000,-1146.10198324,0.00013324,2]
[423314351,1780053043000,-1935.84525152,0.00013444,2]
[423314349,1780053043000,-1294.25680431,0.00013324,2]
[423314350,1780053043000,-166.66,0.0001338,2]
[423314352,1780053043000,-649.79151156,0.00013444,2]
[423314346,1780053043000,-152.0,0.00012127,7]
[423314353,1780053043000,-289.2554588,0.00013444,2]
[423314355,1780053043000,-18515.91788856,0.00013444,2]
[423314356,1780053043000,-1234.60881656,0.00013444,2]
[423314357,1780053043000,-409.53,0.00013444,2]
[423314358,1780053043000,-456.92043422,0.00013444,2]
[423314354,1780053043000,-816.51725318,0.00013444,2]
[423314368,1780053044000,-833.26908932,0.00013444,2]
[423314360,1780053044000,-10847.72803583,0.00013444,2]
[423314359,1780053044000,-9173.40769887,0.00013444,2]
[423314375,1780053046000,-8204.03644399,0.00013444,2]
[423314372,1780053046000,-366.69020406,0.00013444,2]
[423314373,1780053046000,-7521.88673891,0.00013444,2]
[423314382,1780053046000,-157.66385764,0.00013488,2]
[423314379,1780053046000,-150.0,0.00013488,2]
[423314374,1780053046000,-381.23466672,0.00013444,2]
[423314377,1780053046000,-150.0,0.00013488,2]
[423314381,1780053046000,-150.0,0.00013488,2]
[423314385,1780053046000,-492.98298303,0.00013498,2]
[423314383,1780053046000,-2528.20451268,0.00013498,2]
[423314378,1780053046000,-150.0,0.00013488,2]
[423314380,1780053046000,-150.0,0.00013488,2]
[423314376,1780053046000,-150.0,0.00013488,2]
[423314384,1780053046000,-511.63701206,0.00013498,2]
[423314414,1780053271000,-195.3636,0.00011864,2]
[423314415,1780053271000,-342.86933448,0.00011864,2]
[423314409,1780053271000,-654.9721411,0.0001119,2]
[423314413,1780053271000,-156.68,0.00011819,2]
[423314412,1780053271000,-150.0,0.00011819,2]
[423314411,1780053271000,-155.51,0.00011229,2]
[423314410,1780053271000,-754.60492442,0.00011207,2]
[423314416,1780053431000,-464.36,0.00011265,2]
[423314419,1780053434000,-314.36,0.00011764,2]
[423314418,1780053434000,-150.0,0.00011715,2]
[423314417,1780053434000,-368.66,0.00011265,2]
[423314420,1780053436000,343.03813153,0.00010933,2]
[423314421,1780053461000,-393.14140663,0.00011033,2]
[423314423,1780053512000,-300.0,0.00011732,2]
[423314424,1780053571000,-194.24080165,0.00011664,2]
[423314425,1780053572000,541.89860448,0.00010933,2]
[423314426,1780053595000,296.94543759,0.00010933,2]
[423314427,1780053620000,-617.78139552,0.00011033,2]
[423314428,1780053672000,-336.74770381,0.00011033,2]
[423314429,1780053726000,-500.0,0.00011165,2]
[423314430,1780053741000,158984.56179638,0.000107,2]
[423314431,1780053780000,-150.0,0.00011633,2]
[423314432,1780053833000,-2600.0,0.00011498,2]
[423314433,1780053859000,-2600.0,0.00011498,2]
[423314434,1780053955000,1236.6763523,0.00010933,2]
[423314436,1780053955000,841.3188791,0.00010933,2]
[423314435,1780053955000,388.62747933,0.00010933,2]
[423314439,1780054040000,-166.6,0.00011241,2]
[423314440,1780054040000,-234.33223221,0.00011341,2]
[423314442,1780054140000,1000.0,0.0002808,120]
[423314503,1780054232000,-1315.13235359,0.00011532,2]
[423314492,1780054232000,-1315.13235359,0.00011532,2]
[423314488,1780054232000,-1315.13235359,0.00011532,2]
[423314484,1780054232000,-1315.13235359,0.00011532,2]
[423314481,1780054232000,-1315.13235359,0.00011532,2]
[423314485,1780054232000,-1315.13235359,0.00011532,2]
[423314487,1780054232000,-1315.13235359,0.00011532,2]
[423314483,1780054232000,-1315.13235359,0.00011532,2]
[423314486,1780054232000,-1315.13235359,0.00011532,2]
[423314482,1780054232000,-1315.13235359,0.00011532,2]
[423314480,1780054232000,-1315.13235359,0.00011532,2]
[423314502,1780054232000,-1315.13235359,0.00011532,2]
[423314498,1780054232000,-1315.13235359,0.00011532,2]
[423314496,1780054232000,-1315.13235359,0.00011532,2]
[423314497,1780054232000,-1315.13235359,0.00011532,2]
[423314493,1780054232000,-1315.13235359,0.00011532,2]
[423314494,1780054232000,-1315.13235359,0.00011532,2]
[423314500,1780054232000,-1315.13235359,0.00011532,2]
[423314491,1780054232000,-1315.13235359,0.00011532,2]
[423314499,1780054232000,-1315.13235359,0.00011532,2]
[423314501,1780054232000,-1315.13235359,0.00011532,2]
[423314504,1780054232000,-1315.13235359,0.00011532,2]
[423314506,1780054232000,-1315.13235359,0.00011532,2]
[423314510,1780054232000,-1315.13235359,0.00011532,2]
[423314495,1780054232000,-1315.13235359,0.00011532,2]
[423314479,1780054232000,-500.0,0.00011532,2]
[423314489,1780054232000,-1315.13235359,0.00011532,2]
[423314476,1780054232000,-600.22194361,0.00011532,2]
[423314507,1780054232000,-1315.13235359,0.00011532,2]
[423314455,1780054232000,-150.0,0.0001109,2]
[423314456,1780054232000,-150.0,0.0001109,2]
[423314457,1780054232000,-174.20905484,0.00011241,2]
[423314459,1780054232000,-214.24219503,0.00011241,2]
[423314458,1780054232000,-62.07094516,0.00011241,2]
[423314460,1780054232000,-448.42004428,0.00011241,2]
[423314461,1780054232000,-74.16776069,0.00011241,2]
[423314466,1780054232000,-1846.43,0.00011498,2]
[423314462,1780054232000,-295.8215593,0.00011241,2]
[423314464,1780054232000,-216.91,0.00011473,2]
[423314490,1780054232000,-1315.13235359,0.00011532,2]
[423314463,1780054232000,-333.9184407,0.00011241,2]
[423314468,1780054232000,-1200.0,0.00011532,2]
[423314478,1780054232000,-500.0,0.00011532,2]
[423314469,1780054232000,-1200.0,0.00011532,2]
[423314467,1780054232000,-387.594,0.00011498,2]
[423314470,1780054232000,-300.0,0.00011532,2]
[423314471,1780054232000,-300.0,0.00011532,2]
[423314472,1780054232000,-150.0,0.00011532,2]
[423314474,1780054232000,-166.64990904,0.00011532,2]
[423314475,1780054232000,-500.0,0.00011532,2]
[423314473,1780054232000,-300.0,0.00011532,2]
[423314477,1780054232000,-500.0,0.00011532,2]
[423314465,1780054232000,-325.79234877,0.00011483,2]
[423314508,1780054232000,-1315.13235359,0.00011532,2]
[423314525,1780054232000,-1315.13235359,0.00011532,2]
[423314513,1780054232000,-1315.13235359,0.00011532,2]
[423314542,1780054232000,-1311.57794182,0.00011532,2]
[423314536,1780054232000,-1311.57794182,0.00011532,2]
[423314540,1780054232000,-1311.57794182,0.00011532,2]
[423314537,1780054232000,-1311.57794182,0.00011532,2]
[423314539,1780054232000,-1311.57794182,0.00011532,2]
[423314541,1780054232000,-1311.57794182,0.00011532,2]
[423314546,1780054232000,-1311.57794182,0.00011532,2]
[423314545,1780054232000,-1311.57794182,0.00011532,2]
[423314557,1780054232000,-1311.57794182,0.00011532,2]
[423314548,1780054232000,-1311.57794182,0.00011532,2]
[423314556,1780054232000,-1311.57794182,0.00011532,2]
[423314538,1780054232000,-1311.57794182,0.00011532,2]
[423314547,1780054232000,-1311.57794182,0.00011532,2]
[423314550,1780054232000,-1311.57794182,0.00011532,2]
[423314553,1780054232000,-1311.57794182,0.00011532,2]
[423314555,1780054232000,-1311.57794182,0.00011532,2]
[423314549,1780054232000,-1311.57794182,0.00011532,2]
[423314551,1780054232000,-1311.57794182,0.00011532,2]
[423314563,1780054232000,-500.0,0.00011532,2]
[423314562,1780054232000,-313.11354328,0.00011532,2]
[423314561,1780054232000,-500.0,0.00011532,2]
[423314558,1780054232000,-1311.57794182,0.00011532,2]
[423314560,1780054232000,-1311.57794182,0.00011532,2]
[423314509,1780054232000,-1315.13235359,0.00011532,2]
[423314554,1780054232000,-1311.57794182,0.00011532,2]
[423314544,1780054232000,-1311.57794182,0.00011532,2]
[423314552,1780054232000,-1311.57794182,0.00011532,2]
[423314535,1780054232000,-1311.57794182,0.00011532,2]
[423314543,1780054232000,-1311.57794182,0.00011532,2]
[423314512,1780054232000,-1315.13235359,0.00011532,2]
[423314511,1780054232000,-1315.13235359,0.00011532,2]
[423314516,1780054232000,-1315.13235359,0.00011532,2]
[423314514,1780054232000,-1315.13235359,0.00011532,2]
[423314505,1780054232000,-1315.13235359,0.00011532,2]
[423314515,1780054232000,-1315.13235359,0.00011532,2]
[423314519,1780054232000,-1315.13235359,0.00011532,2]
[423314529,1780054232000,-1315.13235359,0.00011532,2]
[423314518,1780054232000,-1315.13235359,0.00011532,2]
[423314531,1780054232000,-1315.13235359,0.00011532,2]
[423314521,1780054232000,-1315.13235359,0.00011532,2]
[423314517,1780054232000,-1315.13235359,0.00011532,2]
[423314520,1780054232000,-1315.13235359,0.00011532,2]
[423314530,1780054232000,-507.79981177,0.00011532,2]
[423314534,1780054232000,-1311.57794182,0.00011532,2]
[423314532,1780054232000,-1311.57794182,0.00011532,2]
[423314533,1780054232000,-1311.57794182,0.00011532,2]
[423314524,1780054232000,-1315.13235359,0.00011532,2]
[423314528,1780054232000,-1315.13235359,0.00011532,2]
[423314559,1780054232000,-1311.57794182,0.00011532,2]
[423314526,1780054232000,-1315.13235359,0.00011532,2]
[423314527,1780054232000,-1315.13235359,0.00011532,2]
[423314522,1780054232000,-1315.13235359,0.00011532,2]
[423314523,1780054232000,-1315.13235359,0.00011532,2]
[423314588,1780054233000,-1425.60983659,0.00011764,2]
[423314590,1780054233000,-75633.67217004,0.00011764,2]
[423314587,1780054233000,-507.0,0.00011748,2]
[423314585,1780054233000,-153.88392468,0.00011733,7]
[423314591,1780054233000,-33230.1787,0.00011764,2]
[423314589,1780054233000,-1139.49769058,0.00011764,2]
[423314594,1780054233000,-1925.12979253,0.00011764,2]
[423314586,1780054233000,-163.54,0.00011733,2]
[423314596,1780054233000,-1139.49769058,0.00011765,2]
[423314597,1780054233000,-1139.49769058,0.00011765,2]
[423314593,1780054233000,-500.0,0.00011764,2]
[423314598,1780054233000,-216.3744677,0.00011774,2]
[423314600,1780054233000,-24208.72,0.00011781,2]
[423314611,1780054233000,-150.0,0.00011819,2]
[423314580,1780054233000,-180.17736497,0.00011674,2]
[423314599,1780054233000,-216.3744677,0.00011774,2]
[423314595,1780054233000,-4049.16805115,0.00011764,2]
[423314578,1780054233000,-2570.7235,0.00011664,2]
[423314569,1780054233000,-500.0,0.00011564,2]
[423314579,1780054233000,-2500.0,0.00011664,2]
[423314610,1780054233000,-13514.33,0.00011819,2]
[423314567,1780054233000,-500.0,0.00011532,2]
[423314566,1780054233000,-500.0,0.00011532,2]
[423314568,1780054233000,-209.09056759,0.00011541,2]
[423314564,1780054233000,-500.0,0.00011532,2]
[423314565,1780054233000,-500.0,0.00011532,2]
[423314571,1780054233000,-1000.0,0.00011631,2]
[423314570,1780054233000,-191.83307155,0.00011578,2]
[423314573,1780054233000,-26653.9519,0.00011632,2]
[423314581,1780054233000,-216.3744677,0.00011674,2]
[423314583,1780054233000,-16785.44565362,0.00011719,2]
[423314582,1780054233000,-2800.0,0.000117,4]
[423314584,1780054233000,-32621.06306035,0.00011722,2]
[423314572,1780054233000,-399.7381,0.00011632,2]
[423314574,1780054233000,-150.0,0.00011633,2]
[423314576,1780054233000,-150.0,0.00011633,2]
[423314575,1780054233000,-150.0,0.00011633,2]
[423314577,1780054233000,-37999.87851173,0.00011664,2]
[423314604,1780054233000,-1000.0,0.00011819,2]
[423314592,1780054233000,-5000.0,0.00011764,2]
[423314607,1780054233000,-55869.11,0.00011819,2]
[423314627,1780054233000,-151.0,0.00011861,2]
[423314635,1780054233000,-500.0,0.00011863,3]
[423314630,1780054233000,-1063.25963628,0.00011863,3]
[423314629,1780054233000,-162.00639556,0.00011861,2]
[423314633,1780054233000,-1099.01031239,0.00011863,3]
[423314638,1780054233000,-500.0,0.00011863,6]
[423314626,1780054233000,-151.0,0.00011861,2]
[423314632,1780054233000,-1146.38298594,0.00011863,3]
[423314628,1780054233000,-151.0,0.00011861,2]
[423314636,1780054233000,-500.0,0.00011863,4]
[423314631,1780054233000,-1134.60161554,0.00011863,3]
[423314634,1780054233000,-500.0,0.00011863,2]
[423314639,1780054233000,-1000.0,0.00011863,2]
[423314643,1780054233000,-250.0,0.00011864,2]
[423314641,1780054233000,-47572.00081654,0.00011864,2]
[423314640,1780054233000,-302053.432424,0.00011864,2]
[423314603,1780054233000,-2000.0,0.00011819,2]
[423314617,1780054233000,-6349.52,0.00011819,2]
[423314618,1780054233000,-18238.48,0.00011819,2]
[423314637,1780054233000,-500.0,0.00011863,5]
[423314622,1780054233000,-235.01,0.00011819,2]
[423314601,1780054233000,-5600.0,0.000118,4]
[423314608,1780054233000,-4000.0,0.00011819,2]
[423314609,1780054233000,-4915.56,0.00011819,2]
[423314605,1780054233000,-250.49,0.00011819,2]
[423314619,1780054233000,-2774.15,0.00011819,2]
[423314606,1780054233000,-200.0,0.00011819,2]
[423314613,1780054233000,-9999.99,0.00011819,2]
[423314624,1780054233000,-169.465949,0.00011861,2]
[423314612,1780054233000,-2000.0,0.00011819,2]
[423314602,1780054233000,-1182.49,0.00011819,2]
[423314614,1780054233000,-9999.99,0.00011819,2]
[423314625,1780054233000,-151.0,0.00011861,2]
[423314642,1780054233000,-29107.26485451,0.00011864,2]
[423314620,1780054233000,-29865.19,0.00011819,2]
[423314616,1780054233000,-11164.9,0.00011819,2]
[423314621,1780054233000,-299.99,0.00011819,2]
[423314623,1780054233000,-1490.76239877,0.00011838,2]
[423314615,1780054233000,-150.99,0.00011819,2]
[423314645,1780054236000,2444.48,0.00010744,2]
[423314644,1780054236000,2444.48,0.00010685,2]
[423314673,1780054237000,-500.0,0.00011532,2]
[423314671,1780054237000,-6383.907035,0.00011034,2]
[423314674,1780054237000,-430.38032745,0.00011532,2]
[423314646,1780054237000,2444.48,0.00010803,2]
[423314670,1780054237000,2444.48,0.00010981,2]
[423314648,1780054237000,2444.48,0.00010922,2]
[423314676,1780054237000,-129880.42981485,0.00011864,2]
[423314672,1780054237000,-500.0,0.00011532,2]
[423314675,1780054237000,-500.0,0.00011532,2]
[423314647,1780054237000,2444.48,0.00010862,2]
[423314679,1780054237000,-162459.17778394,0.00011864,2]
[423314678,1780054237000,-2444.48,0.0001104,2]
[423314683,1780054237000,-8400.0,0.000119,4]
[423314685,1780054237000,-247.44323952,0.00011968,7]
[423314680,1780054237000,-628979.7251,0.00011864,2]
[423314684,1780054237000,-167.99872408,0.00011968,7]
[423314681,1780054237000,-507.0,0.00011865,2]
[423314682,1780054237000,-236.28,0.00011866,2]
[423314686,1780054237000,-170.99392172,0.00011968,2]
[423314687,1780054237000,-170.99392172,0.00011968,2]
[423314677,1780054237000,-990.98677168,0.00011864,2]
[423314725,1780054238000,-500.0,0.00012028,2]
[423314724,1780054238000,-403.39597363,0.00012028,2]
[423314726,1780054238000,-500.0,0.00012028,2]
[423314723,1780054238000,-432.24357941,0.00012028,2]
[423314728,1780054238000,-500.0,0.00012028,2]
[423314721,1780054238000,-500.0,0.00012028,2]
[423314729,1780054238000,-507.81285816,0.00012028,2]
[423314727,1780054238000,-500.0,0.00012028,2]
[423314730,1780054238000,-272.55956862,0.00012028,2]
[423314720,1780054238000,-500.0,0.00012028,2]
[423314722,1780054238000,-500.0,0.00012028,2]
[423314732,1780054238000,-500.0,0.00012028,2]
[423314744,1780054238000,-500.0,0.00012028,2]
[423314738,1780054238000,-500.0,0.00012028,2]
[423314736,1780054238000,-500.0,0.00012028,2]
[423314742,1780054238000,-500.0,0.00012028,2]
[423314719,1780054238000,-500.0,0.00012028,2]
[423314746,1780054238000,-500.0,0.00012028,2]
[423314748,1780054238000,-500.0,0.00012028,2]
[423314754,1780054238000,-500.0,0.00012028,2]
[423314750,1780054238000,-500.0,0.00012028,2]
[423314740,1780054238000,-500.0,0.00012028,2]
[423314752,1780054238000,-500.0,0.00012028,2]
[423314758,1780054238000,-500.0,0.00012028,2]
[423314761,1780054238000,-500.0,0.00012028,2]
[423314762,1780054238000,-500.0,0.00012028,2]
[423314734,1780054238000,-500.0,0.00012028,2]
[423314718,1780054238000,-500.0,0.00012028,2]
[423314712,1780054238000,-500.0,0.00012028,2]
[423314716,1780054238000,-500.0,0.00012028,2]
[423314756,1780054238000,-500.0,0.00012028,2]
[423314688,1780054238000,-507.0,0.00011981,2]
[423314689,1780054238000,-360.0,0.00011997,2]
[423314690,1780054238000,-155.0,0.00011997,2]
[423314692,1780054238000,-356.0,0.00011997,2]
[423314691,1780054238000,-5436.0,0.00011997,2]
[423314694,1780054238000,-475.0,0.00011997,2]
[423314695,1780054238000,-9684.8530687,0.00011997,2]
[423314696,1780054238000,-484.0,0.00012021,2]
[423314693,1780054238000,-17451.01000026,0.00011997,2]
[423314698,1780054238000,-8408.0,0.00012021,2]
[423314705,1780054238000,-500.0,0.00012028,2]
[423314697,1780054238000,-364.0,0.00012021,2]
[423314702,1780054238000,-500.0,0.00012028,2]
[423314699,1780054238000,-485.0,0.00012021,2]
[423314700,1780054238000,-257.0,0.00012021,2]
[423314707,1780054238000,-500.0,0.00012028,2]
[423314706,1780054238000,-500.0,0.00012028,2]
[423314701,1780054238000,-37999.8785117,0.00012024,2]
[423314708,1780054238000,-500.0,0.00012028,2]
[423314703,1780054238000,-500.0,0.00012028,2]
[423314704,1780054238000,-500.0,0.00012028,2]
[423314709,1780054238000,-500.0,0.00012028,2]
[423314711,1780054238000,-500.0,0.00012028,2]
[423314715,1780054238000,-500.0,0.00012028,2]
[423314717,1780054238000,-500.0,0.00012028,2]
[423314713,1780054238000,-500.0,0.00012028,2]
[423314714,1780054238000,-500.0,0.00012028,2]
[423314763,1780054238000,-500.0,0.00012028,2]